Cogmind - Beta 13 @@@ ROGUE MODE // 2024.04.03 @ 17:04:34 Player: DeluxeH30 Result: Destroyed by D-53 Grenadier with Mini Grenade Launcher Performance ------------- Evolutions (0) 0 Regions Visited (2) 400 Robots Destroyed (18) 90 Value Destroyed (259) 259 Prototype IDs (0) 0 Alien Tech Used (0) 0 Bonus (0) 0 TOTAL SCORE: 749 Bonus ------- None Cogmind --------- Core Integrity 0/250 Matter 287/300 Energy 56/250 System Corruption 0% Temperature Cool (0) Movement Walking (120) Location -10/Mines Parts ------- > --- POWER (1) -------- Ion Engine > --- PROPULSION (2) --- Aluminum Leg > --- UTILITY (2) ------ Small Storage Unit > --- WEAPON (2) ------- (None) > --- INVENTORY (8) ---- Light Ion Engine Aluminum Leg Hacking Suite Datajack Peak State ------------ > --- POWER ------------ Light Ion Engine > --- PROPULSION ------- Aluminum Leg Aluminum Leg > --- UTILITY ---------- Small Storage Unit Sensor Array > --- WEAPON ----------- Small Laser Particle Gun > --- INVENTORY -------- Ion Engine Light Ion Engine Light Ion Engine Aluminum Leg Hover Unit Hover Unit Hacking Suite Datajack [Rating: 9] Favorites ----------- Power Light Ion Engine Engine Light Ion Engine Propulsion Aluminum Leg Leg Aluminum Leg Hover Unit Hover Unit Flight Unit Flight Unit Utility Small Storage Unit Device Sensor Array Storage Small Storage Unit Weapon Assault Rifle Energy Gun Small Laser Ballistic Gun Assault Rifle Build | -11 -10 -10 ------- Run | Yrd Mat Min Slots Evolved . | . . . Power . | . . . Propulsion . | . . . Utility . | . . . Weapon . | . . . Parts Attached 28 | 5 18 5 Power 6 | 1 3 2 Engine 6 | 1 3 2 Core . | . . . Reactor . | . . . Propulsion 12 | 1 8 3 Treads . | . . . Leg 8 | 1 6 1 Wheel . | . . . Hover 2 | . . 2 Flight 2 | . 2 . Utility 4 | 1 3 . Device 3 | . 3 . Storage 1 | 1 . . Processor . | . . . Hackware . | . . . Protection . | . . . Artifact . | . . . Weapon 6 | 2 4 . Energy Gun 4 | 1 3 . Energy Cannon . | . . . Ballistic Gun 2 | 1 1 . Ballistic Cannon . | . . . Launcher . | . . . Special Weapon . | . . . Impact Weapon . | . . . Slashing Weapon . | . . . Piercing Weapon . | . . . Special Melee Weapon . | . . . Unidentified Prototypes . | . . . Parts Lost 14 | . 7 7 Power 4 | . 2 2 Propulsion 3 | . 1 2 Utility 2 | . 1 1 Weapon 5 | . 3 2 Highest Loss Streak 7 | . 6 7 To Critical Strikes 1 | . . 1 Average Slot Usage (%) 93 | . 93 96 Engine 13 | . 13 14 Leg 25 | . 25 26 Device 11 | . 11 12 Storage 14 | . 14 14 Energy Gun 11 | . 8 25 Ballistic Gun 15 | . 18 . Naked Turns . | . . . Heaviest Build 15 | 13 15 13 Greatest Support 20 | 10 20 20 Greatest Overweight (x) 3 | 2 3 . Average Overweight (x) . | . . . Largest Inventory Capacity 8 | 8 8 8 Average Capacity 7 | 7 8 8 Most Carried 8 | 3 8 8 Average Carried 4 | 2 4 7 Final Capacity 8 | 8 8 8 Final Carried 8 | 3 8 4 Class Distribution -------------------- 58% | Mutant 41% | Scavenger-Mutant Dominant Class ---------------- Mutant | -10/Materials Scavenger-Mutant | -10/Mines Resources | -11 -10 -10 ----------- Run | Yrd Mat Min Matter Collected 578 | 115 448 15 Remotely . | . . . Salvage Created 642 | . 642 . Parts 36 | . 36 . Haulers Intercepted 1 | . 1 . Recyclers Shooed 3 | . 3 . Parts Field Recycled . | . . . Retrieved Matter . | . . . Parts Self-Destructed . | . . . Prevented . | . . . Kills | -11 -10 -10 ------- Run | Yrd Mat Min Combat Hostiles Destroyed 7 | . 7 . Guns 7 | . 7 . Classes Destroyed 8 | . 8 . Worker 2 | . 2 . Builder 2 | . 2 . Hauler 1 | . 1 . Recycler 3 | . 3 . Operator 2 | . 2 . Watcher 1 | . 1 . Swarmer 3 | . 3 . Grunt 4 | . 4 . Best Kill Streak 4 | . 4 . Combat Bots Only 3 | . 3 . Max Kills in Single Turn 1 | . 1 . Gunslinging . | . . . Exploded . | . . . Melee . | . . . Uniques/NPCs Destroyed . | . . . Combat | -11 -10 -10 -------- Run | Yrd Mat Min Hostile Shots Fired 113 | . 89 24 Missed 28 | . 25 3 Damage Taken 1147 | . 684 463 Core 261 | . 112 149 Absorbed by Shields . | . . . Core Remaining (%) 100 | 100 . . Volleys Fired 59 | 4 53 2 Largest 2 | 2 2 2 Hottest 105 | 60 105 105 Shots Fired 113 | 7 102 4 Gun 113 | 7 102 4 Cannon . | . . . Launcher . | . . . Special . | . . . Kinetic 79 | 3 76 . Thermal 33 | 4 25 4 Explosive . | . . . Electromagnetic 1 | . 1 . Robot Hit Streak 14 | 1 14 2 Robot Miss Streak 2 | 1 2 1 Penetration Max . | . . . Secondary Targets 3 | . 3 . Max Gunslinging Chain 1 | . 1 . Shots Hit Robots 79 | 4 73 2 Core Hits 32 | 1 31 . Critical Kills . | . . . Critical Parts Destroyed . | . . . Critical Strikes . | . . . Melee Attacks . | . . . Impact . | . . . Slashing . | . . . Piercing . | . . . Sneak Attacks . | . . . Combat Hostiles . | . . . Follow-up Attacks . | . . . Damage Inflicted 938 | 45 853 40 Guns 927 | 45 853 29 Cannons . | . . . Explosions . | . . . Melee . | . . . Ramming 11 | . . 11 Kinetic 625 | 33 592 . Thermal 290 | 12 249 29 Explosive . | . . . Electromagnetic 12 | . 12 . Impact . | . . . Slashing . | . . . Piercing . | . . . Highest Corruption . | . . . Average Corruption . | . . . Corruption Purged . | . . . Corruption Blocked . | . . . Overload Shots . | . . . Overflow Damage . | . . . Projectiles . | . . . Explosions . | . . . Melee . | . . . Knockbacks . | . . . Impact . | . . . Kinetic . | . . . Secondary . | . . . Self-Inflicted Damage 1 | . . 1 Shots . | . . . Rammed 1 | . . 1 Targets Rammed 4 | . . 4 Kicked 3 | . . 3 Crushed . | . . . Highest Temperature 225 | . 225 108 Average Temperature 69 | . 71 54 Received Heat Transfer 322 | . 252 70 Siege Activations . | . . . Robots Corrupted . | . . . Combat Hostiles . | . . . Parts Fried . | . . . Impact Corruptions . | . . . Robots Melted . | . . . Combat Hostiles . | . . . Parts Melted 1 | . 1 . Heat Transferred 645 | 25 558 62 Parts Sabotaged . | . . . Parts Stolen . | . . . Parts Stripped . | . . . Power Chain Reactions . | . . . Alert | -11 -10 -10 ------- Run | Yrd Mat Min Peak Influence 206 | . 206 4 Initial 4 | . . 4 Average 64 | . 88 3 Maximum Alert Level 1 | . 1 . Low Security (%) 97 | 100 96 100 Level 1 2 | . 3 . Level 2 . | . . . Level 3 . | . . . Level 4 . | . . . Level 5 . | . . . High Security . | . . . Max Security . | . . . Squads Dispatched 2 | . 1 1 Investigation 1 | . . 1 Extermination . | . . . Reinforcement 1 | . 1 . Assault . | . . . Garrison . | . . . Intercept . | . . . Searches Triggered . | . . . Construction Impeded . | . . . Haulers Reinforced . | . . . Active Scanning Responses . | . . . Cargo Convoy Interrupts . | . . . Stealth | -11 -10 -10 --------- Run | Yrd Mat Min Distress Signals . | . . . Communications Jammed . | . . . Distress Signals . | . . . Times Spotted 36 | . 11 25 Peak Tracking Total 20 | . 4 20 Tactical Retreats 1 | . . 1 Traps | -11 -10 -10 ------- Run | Yrd Mat Min Traps Triggered . | . . . Indirectly . | . . . Trap Hack Attempts . | . . . Triggered . | . . . Disarmed . | . . . Reprogrammed . | . . . Reused . | . . . Traps Extracted . | . . . Installed . | . . . Triggered . | . . . Machines | -11 -10 -10 ---------- Run | Yrd Mat Min Machines Disabled . | . . . Max in Single Turn . | . . . Machines Repaired . | . . . Machines Dismantled . | . . . Machines Sabotaged . | . . . Overloaded Fab Kills . | . . . Hacking | -11 -10 -10 --------- Run | Yrd Mat Min Machines Accessed 3 | . 2 1 Terminals 2 | . 1 1 Fabricators . | . . . Repair Stations . | . . . Recycling Units 1 | . 1 . Scanalyzers . | . . . Garrison Access . | . . . Total Hacks 13 | . 7 6 Successful 5 | . 3 2 Failed 8 | . 4 4 Catastrophic 2 | . 1 1 Database Lockouts . | . . . Manual 6 | . . 6 Terminals 10 | . 4 6 Fabricators . | . . . Repair Stations . | . . . Recycling Units 3 | . 3 . Scanalyzers . | . . . Garrison Access . | . . . Terminal Hacks 3 | . 1 2 Alert Level 1 | . . 1 Dispatch Records 1 | . . 1 Registered Prototypes 1 | . 1 . Fabricator Hacks . | . . . Repair Station Hacks . | . . . Recycling Unit Hacks 2 | . 2 . Report Inventory 1 | . 1 . Retrieve Components 1 | . 1 . Scanalyzer . | . . . Garrison Access Hacks . | . . . Unauthorized Hacks . | . . . Terminals . | . . . Fabricators . | . . . Repair Stations . | . . . Recycling Units . | . . . Scanalyzers . | . . . Garrison Access . | . . . Data Cores Recovered 1 | . 1 . Used . | . . . Hacking Detections 3 | . 2 1 Full Trace Events 1 | . . 1 Feedback Events . | . . . Feedback Blocked . | . . . Robot Schematics Acquired . | . . . Robots Built . | . . . Authchips . | . . . Time . | . . . Total Robot Build Rating . | . . . Part Schematics Acquired . | . . . Parts Built . | . . . Authchips . | . . . Time . | . . . Total Part Build Rating . | . . . Parts Repaired . | . . . Time . | . . . Parts Recycled . | . . . Recycled Matter . | . . . Retrieved Matter . | . . . Retrieved Components 2 | . 2 . Parts Scanalyzed . | . . . Part Schematics Acquired . | . . . Parts Damaged . | . . . Bothacking | -11 -10 -10 ------------ Run | Yrd Mat Min Used RIF Installer . | . . . Robots Hacked . | . . . Non-combat . | . . . Combat . | . . . Robot Hacks Applied . | . . . Relay Couplers Released . | . . . Fabnet Peak Effective % . | . . . Robots Rewired . | . . . Allies Hacked . | . . . Hacks Repelled . | . . . Allies | -11 -10 -10 -------- Run | Yrd Mat Min Total Allies . | . . . Largest Group . | . . . Highest-Rated Group . | . . . Highest-Rated Ally . | . . . Total Orders . | . . . Ally Attacks . | . . . Total Damage . | . . . Kills . | . . . Allies Corrupted . | . . . Allies Melted . | . . . Intel | -11 -10 -10 ------- Run | Yrd Mat Min Robot Analysis Total . | . . . Derelict Logs Recovered 1 | . . 1 Drone Launches . | . . . Drone Recoveries . | . . . Exploration | -11 -10 -10 ------------- Run | Yrd Mat Min Turns Passed 644 | 68 464 112 Spaces Moved 325 | 27 220 78 Core 6 | 6 . . Treads . | . . . Legs 318 | 21 219 78 Wheels . | . . . Hover . | . . . Flight 1 | . 1 . Fastest Speed 50 | 50 120 120 Average Speed 125 | 168 122 120 Slowest Speed 280 | 190 280 120 Overloaded Moves . | . . . Propulsion Burnouts . | . . . Robots Hopped . | . . . Cave-ins Triggered . | . . . Exploration Rate (%) 24 | 4 35 33 Regions Visited 2 Branch Regions 1 Pre-discovered Areas . | . . . Known Exits Taken . | . . . Unknown Exits Taken 2 | 1 1 . Scrap Searched . | . . . Spaces Dug . | . . . Terrain Destroyed . | . . . Melee . | . . . Projectile . | . . . AOE . | . . . Terrain Rammed . | . . . Walls Destroyed . | . . . Machines Disabled . | . . . Actions | -11 -10 -10 --------- Run | Yrd Mat Min Total 460 | 43 326 91 Wait 2 | . 1 1 Move 323 | 26 219 78 Hop . | . . . Pick Up 32 | 8 24 . Fast Attach . | . . . Attach 26 | 5 17 4 Detach 1 | . 1 . Swap 2 | . 1 1 Drop 11 | . 10 1 Fire 59 | 4 53 2 Melee . | . . . Ram 1 | . . 1 Kick 3 | . . 3 Crush . | . . . Escape Stasis . | . . . Rewire . | . . . Trap . | . . . Miscellaneous . | . . . Route ------- -11/Scrapyard -10/Materials -10/Mines History --------- Turn | Location | Event 32 | -11/Scrapyard | Discovered new exit (range 15) 69 | -11/Scrapyard | Entered Materials 302 | -10/Materials | Build established: Mutant 320 | -10/Materials | Discovered new exit (range 15) 439 | -10/Materials | Lost 6 parts (2p1n3w) 533 | -10/Materials | Entered Mines 615 | -10/Mines | Assembled infested the area 620 | -10/Mines | Assisted by a Guerilla fighting off Assembled 621 | -10/Mines | Learned 2 Materials zone layouts 637 | -10/Mines | Core integrity fell below 50% 644 | -10/Mines | Core integrity fell below 20% 645 | -10/Mines | Destroyed by D-53 Grenadier with Mini Grenade Launcher Last Messages --------------- 00638_ Critical hit (Destroy). 00638_ Sml. Laser destroyed. 00639_ Particle Gun destroyed. 00639_ K-01 Serf collects debris. 00639_ as-30802 destroyed. 00639_ as-96730 destroyed. 00639_ as-30840 destroyed. 00640_ Dropped Aluminum Leg. 00641_ as-13741 destroyed. 00641_ as-51422 destroyed. 00641_ as-87750 destroyed. 00641_ as-08801 destroyed. 00642_ Slammed into as-36404. 00642_ as-36404 destroyed. 00642_ Lgt. Ion Engine destroyed. 00642_ Hover Unit destroyed. 00642_ as-23990 destroyed. 00643_ Acquired 3 matter. 00643_ Hover Unit destroyed. 00644_ Acquired 2 matter. Map ----- +----------------------------------------------------+ | | | | | | | | | | | ?????????????????????????????????????????????????? | | ?????????????????????????????????????????????????? | | ?????????????????????????????????????????????????? | | ?????????????????????????????????????????????????? | | ?????????????????????????????????????????????????? | | ???????????????????????#?????????????????????????? | | ?????????????????????? ?????????????????????????? | | ?????????????????????? ?????????????????????????? | | ???????????????? ???? ????????????????? ???????? | | ??????????????? ???# ??????????????? ?????? | | ???????????????? #?## ??????????????? ??????? | | ????????????????? ?? ??????????????? #??????? | | ?????????????????? ? ?????????????## #??????? | | ??????????????????# ????###?????? $ ???????? | | ??????????????????# ? ???? #?????# ????????? | | ???????????????????# ###?# #?????# #????????? | | ????????????????????# # ### #?????# #????????? | | ???????????????????## # #???### #????????? | | ???????????????????# a # #??## ##???????? | | ????????????????# # % a#??# #???????? | | ?????????? %! *%= @ =d #### #???????? | | ????????????????# ! % dk % #????????? | | ????????????????### ### ## #????????? | | ??????????????????# #### ### #####?????? | | ??????????????????### ### T#?????? | | ????????????????????# ##?# ##?????? | | ????????????????????# #??# """ """ #??????? | | ????????????????????# #??# """ """ #??????? | | ???????????????????? #??# """ """ #??????? | | ??????????????????? #??# #??????? | | ?????????????????? #??# """ """ #??????? | | ?????????????????? ##??# """ """ #??????? | | ?????????????????## #????# """ """ #??????? | | ??????????????????# #?????# #??????? | | ????????????????????? #??????# """ """ #??????? | | ??????????????????????????????# """ """ #??????? | | ??????????????????????????????# """ """ #??????? | | ??????????????????????????????# #??????? | | ??????????????????????????????# """ """ #??????? | | ????????????????????#?????????# """ """ #??????? | | ????????????????????# ????????# """ """ #??????? | | ?????????????????#### ???????# #??????? | | ?????????????????? ??????#### #######??????? | | ????????????????????# ###?????# #????????????? | | ?????????????????????# ###### #????????????? | +----------------------------------------------------+ Best States ------------- Heat Dissipation 25 Energy Generation 10 Energy Capacity 250 Matter Stores 300 Matter Capacity 300 Sight Range 16 Robot Scan Range 14 Terrain Scan Density 10 ECM Strength 1 Evasion (%) 55 Item Schematics ----------------- None Robot Schematics ------------------ None Fabricated ------------ Nothing Alien Tech Used ----------------- None Achievements -------------- Hunted Challenges ------------ None Game ------ Seed CombatBehemothKinecellerator Manual? 0 Play Time 00:11:09 Cumulative 19.4 hours Start 2024.04.03 @ 16:55:51 End 2024.04.03 @ 17:04:34 Sessions 1 Manual Loads 0 Difficulty Rogue Special Mode None Game No. 30 Rogue 30 Adventurer 0 Explorer 0 Win Type - Total 0 Types 0/0/0/0/0/0/0/0/0 Lore% 15 Gallery% 21 Achievement% 17 Wizard Run 0 Options --------- Layout 0 ASCII 0 Keyboard 0 Movement Mouse Keybinds 0 Fullscreen 2 Font 24/Smallcaps Map View 76x50 Zoom Use 0% Tactical HUD 1 Map Filters NONE Filters NONE Steam 1 RUN: f3f762d8-4910-40e5-be90-897278bc7967